bitfinex/quotes_ETHUSD_20251021
["timestamp","ask_amount","ask_price","bid_price","bid_amount"]
[1761059276461,0.467,4041.3,4040.7,0.12938468]
[1761059276714,0.467,4041.3,4038.9,2.47589354]
[1761059276715,0.467,4041.3,4038.8,0.305]
[1761059276863,0.467,4041.3,4040.6,0.002]
[1761059277180,2.47481871,4040.7,4040.6,0.002]
[1761059277381,2.50046858,4040.7,4040.6,0.002]
[1761059277585,2.50046858,4040.7,4040.1,0.002]
[1761059277586,2.89196904,4040.7,4040.1,0.002]
[1761059277762,2.47512499,4040.2,4040.1,0.002]
[1761059277961,1.728,4040.1,4037.2,0.3085]
[1761059278217,2.47530879,4039.9,4037.2,0.3085]
[1761059278505,4.67029776,4040.0,4036.8,0.353]
[1761059278709,2.47618023,4038.5,4036.8,0.353]
[1761059278911,1.728,4039.7,4035.2,0.3085]
[1761059278912,0.50688,4039.2,4035.2,0.3085]
[1761059279075,2.47663199,4037.8,4035.2,4.1015]
[1761059279278,1.728,4038.5,4035.3,0.3085]
[1761059279581,2.476289,4038.4,4035.3,0.3085]
[1761059279782,0.02564987,4038.3,4035.4,0.6654445]
[1761059279985,2.47653532,4037.9,4035.9,2.47774543]
[1761059280174,0.84632978,4039.9,4036.2,2.47757791]
[1761059280377,0.467,4039.7,4036.3,0.02477516]
[1761059280577,0.467,4040.1,4036.5,0.05]
[1761059280874,0.467,4040.1,4036.4,4.758]
[1761059280875,0.02564987,4040.0,4037.0,0.50688]
[1761059281071,0.467,4039.9,4037.1,0.4254]
[1761059281314,0.02564987,4039.8,4037.1,0.1169]
[1761059281512,0.467,4039.9,4037.2,0.02476964]
[1761059281714,0.467,4039.9,4036.4,5.50743192]
[1761059281715,1.728,4039.1,4035.8,2.47779415]
[1761059281918,1.728,4039.1,4034.1,1.722]
[1761059281919,0.50688,4038.8,4034.8,0.3085]
[1761059282113,0.50688,4038.8,4035.1,2.55294834]
[1761059282114,2.47679643,4037.5,4035.1,2.55294834]
[1761059282276,1.728,4037.9,4035.1,0.0747]
[1761059282479,0.6964,4037.8,4035.2,0.02478191]
[1761059282676,0.6964,4037.8,4035.3,0.3085]
[1761059282878,0.6964,4037.8,4035.4,0.28861803]
[1761059282879,0.467,4037.7,4035.4,0.28861803]
[1761059283079,0.467,4037.7,4035.3,0.3085]
[1761059283080,0.02564987,4037.6,4035.3,2.47809447]
[1761059283280,0.02564987,4037.6,4034.8,1.902]
[1761059283506,0.50688,4037.2,4033.5,0.1169]
[1761059283714,0.467,4037.5,4032.4,2.4799127]
[1761059283715,2.4779625,4035.6,4032.4,2.4799127]
[1761059283915,2.47739221,4036.6,4033.2,2.47941898]
[1761059283916,4.20608189,4035.4,4033.2,2.47941898]
[1761059284114,4.20608189,4035.4,4032.8,2.47965885]
[1761059284115,1.75364987,4035.3,4032.8,2.47965885]
[1761059284298,1.728,4035.2,4032.5,0.44614127]
[1761059284502,0.02564987,4035.1,4032.5,0.44614127]
[1761059284702,0.996,4035.0,4032.5,0.44614127]
[1761059284976,0.467,4035.1,4031.6,0.3085]
[1761059284977,0.467,4035.1,4032.6,0.02479789]
[1761059285130,0.467,4035.1,4032.7,0.787]
[1761059285490,0.467,4035.1,4032.8,2.47966673]
[1761059285688,2.47853224,4034.7,4032.7,0.787]
[1761059285888,0.1232,4033.5,4032.8,0.1232]
[1761059286126,0.467,4035.0,4032.7,0.787]
[1761059286282,0.467,4035.0,4033.4,0.1232]
[1761059286283,0.1232,4034.2,4033.4,0.1232]
[1761059286483,0.1232,4035.4,4033.2,0.50688]
[1761059286820,0.467,4035.8,4033.3,0.85541782]
[1761059287024,0.467,4035.8,4033.5,1.728]
[1761059287319,0.467,4035.8,4033.4,2.69795281]
[1761059287320,0.467,4036.4,4033.4,2.78776158]
[1761059287519,0.467,4036.4,4035.1,2.47820151]
[1761059287723,0.467,4036.4,4035.2,0.02478191]
[1761059288027,0.467,4036.4,4034.1,3.692]
[1761059288229,0.467,4036.4,4034.3,2.47874476]
[1761059288432,0.467,4036.4,4034.4,0.02478683]
[1761059288593,0.2294,4037.8,4034.4,0.33328683]
[1761059288804,0.6964,4037.0,4036.2,2.47754155]
[1761059289008,0.467,4037.7,4036.3,0.02477516]
[1761059289329,0.467,4037.7,4034.4,0.3085]
[1761059289330,0.02564987,4037.6,4035.6,0.1169]
[1761059289642,0.467,4037.7,4035.7,0.34619]
[1761059289845,0.467,4037.7,4034.1,0.62378]
[1761059289846,2.47731219,4036.7,4034.4,0.02478683]
[1761059290053,2.47726038,4036.8,4034.0,0.1169]
[1761059290346,4.584,4037.2,4034.3,2.47873302]
[1761059290547,2.47714987,4036.9,4035.1,2.47825289]
[1761059290754,2.7059976,4037.8,4035.2,0.24782529]
[1761059290755,0.49264987,4036.8,4035.2,0.24782529]
[1761059290899,0.467,4036.8,4034.1,0.81538]
[1761059291104,2.94421447,4036.8,4035.1,2.47824631]
[1761059291442,0.467,4036.8,4035.3,2.47813049]
[1761059291642,0.467,4036.7,4035.4,2.47801179]
[1761059291942,0.467,4036.7,4034.0,0.1169]
[1761059291943,0.02564987,4036.6,4034.0,0.1169]
[1761059292242,0.02564987,4036.6,4031.9,0.05]
[1761059292243,2.47800225,4035.6,4034.1,0.16439]
[1761059292405,2.47800225,4035.6,4032.6,0.3085]
[1761059292406,2.47745515,4036.4,4032.6,0.3085]
[1761059292407,0.02564987,4035.5,4032.6,0.3085]
[1761059292606,0.02564987,4035.5,4031.4,2.78901128]
[1761059292607,1.728,4035.4,4031.4,2.78901128]
[1761059292917,0.50688,4035.1,4031.9,3.328]
[1761059293100,2.36,4035.1,4032.4,2.47990602]
[1761059293301,0.467,4035.0,4032.5,0.02479851]
[1761059293537,0.467,4035.0,4032.6,0.3085]
[1761059293853,0.467,4035.0,4033.7,2.47910718]
[1761059294146,0.467,4035.0,4031.9,3.328]
[1761059294147,0.02564987,4034.9,4031.9,3.328]
[1761059294436,0.467,4035.0,4034.0,2.47891994]
[1761059294603,0.467,4035.0,4034.1,0.02478867]
[1761059294800,0.467,4035.0,4032.5,4.51632445]
[1761059295015,0.467,4035.0,4032.7,2.47970639]
[1761059295218,0.2294,4036.3,4033.0,1.728]
[1761059295414,0.467,4035.9,4034.6,2.47850794]
[1761059295617,0.02564987,4035.8,4033.9,3.738]
[1761059295805,0.2294,4036.3,4034.0,0.62170481]
[1761059295806,0.467,4035.7,4034.0,0.62170481]
[1761059296026,0.467,4035.7,4033.5,3.794]
[1761059296230,0.2294,4036.3,4033.7,0.50688]
[1761059296435,0.2294,4036.3,4034.1,2.47886765]
[1761059296607,0.1232,4036.1,4035.4,2.60125393]
[1761059296927,0.1232,4036.1,4034.0,2.4789291]
[1761059296928,0.2294,4036.3,4035.7,2.4778248]
[1761059297241,0.1232,4036.4,4035.7,0.62126101]
[1761059297415,0.467,4037.3,4034.9,0.1169]
[1761059297416,0.467,4037.3,4035.4,0.02478069]
[1761059297614,0.1232,4037.1,4036.4,0.1232]
[1761059298007,0.467,4037.3,4036.3,2.4775134]
[1761059298238,0.467,4037.3,4035.4,2.78655853]
[1761059298239,0.2294,4037.8,4036.1,0.0747]
[1761059298441,0.6885,4037.8,4036.1,0.0747]
[1761059298739,0.4591,4037.7,4036.2,0.25523841]
[1761059298904,2.47684535,4037.4,4034.9,3.9109]
[1761059299110,0.4591,4037.7,4035.1,2.47825332]
[1761059299427,0.4591,4037.7,4034.9,3.9109]
[1761059299428,0.50688,4037.4,4034.9,3.794]
[1761059299629,3.41374987,4037.6,4032.4,1.227]
[1761059299630,0.41771286,4037.3,4033.9,0.1169]
[1761059299829,2.23488,4037.2,4033.9,0.1169]
[1761059300144,2.47748665,4036.4,4034.7,2.4784843]
[1761059300317,2.47750365,4036.4,4034.7,2.47849207]
[1761059300517,0.4591,4036.3,4034.7,0.24784921]
[1761059300732,0.4591,4036.3,4033.9,0.1169]
[1761059300935,0.4591,4036.3,4033.1,1.728]
[1761059300936,2.1871,4036.3,4032.3,2.47993877]
[1761059301242,1.728,4035.9,4032.6,0.002]
[1761059301443,2.47802614,4035.5,4033.7,2.47905558]
[1761059301649,2.47794848,4035.6,4032.7,0.33329728]
[1761059301813,0.24779485,4035.5,4033.1,2.47944186]
[1761059302012,0.24779485,4035.5,4032.8,0.28150537]
[1761059302013,2.4126,4036.8,4033.2,0.0247942]
[1761059302214,0.50688,4036.6,4033.2,0.0247942]
[1761059302507,0.50688,4036.6,4034.5,2.47860317]
[1761059302508,2.47761967,4036.2,4034.5,2.47860317]
[1761059302721,0.4591,4036.5,4033.2,0.3085]
[1761059302921,2.47873662,4034.4,4032.8,0.28150537]
[1761059303123,2.47751653,4036.3,4032.6,0.002]
[1761059303124,2.47842534,4034.9,4032.6,0.002]
[1761059303344,2.607,4036.2,4032.6,0.002]
[1761059303345,2.93759226,4034.8,4032.6,0.002]
[1761059303543,0.4591,4034.8,4032.6,0.002]
[1761059303772,0.49324987,4034.7,4032.6,0.002]
[1761059304077,2.1956,4034.7,4032.6,0.002]
[1761059304253,2.71272822,4032.7,4032.6,0.002]
[1761059304452,2.73837809,4032.7,4030.4,0.0747]
[1761059304668,0.4676,4032.6,4030.4,0.0747]
[1761059304852,0.233,4032.7,4030.5,0.3105]
[1761059305052,0.4676,4033.3,4030.5,0.3105]
[1761059305053,0.233,4033.2,4030.6,1.728]
[1761059305253,0.233,4034.0,4033.2,2.47936236]
[1761059305481,0.02564987,4033.9,4032.3,0.1189]
[1761059305986,0.233,4035.3,4032.9,1.728]
[1761059306143,0.233,4035.3,4033.0,0.50688]
[1761059306500,0.233,4035.3,4033.2,4.20740541]
[1761059306699,0.233,4035.3,4033.3,4.24379054]
[1761059306992,0.233,4035.7,4034.9,2.47832781]
[1761059307191,0.233,4035.7,4033.6,2.47917493]
[1761059307192,0.233,4035.7,4033.6,0.50688]
[1761059307344,0.233,4035.7,4034.9,2.47835831]
[1761059307538,0.4676,4036.3,4035.0,2.47830681]
[1761059307781,0.4676,4036.3,4035.1,0.24783068]
[1761059307953,2.312,4037.3,4035.1,0.24783068]
[1761059307954,0.1232,4039.0,4036.4,30.0]
[1761059308152,1.70491076,4040.0,4039.3,0.1179]
[1761059308153,0.38835273,4040.0,4039.3,0.1179]
[1761059308342,0.4676,4041.5,4039.3,0.1179]
[1761059308343,0.4676,4041.5,4039.9,2.47530879]
[1761059308544,0.233,4041.4,4039.4,3.792]
[1761059308785,0.233,4041.4,4040.0,0.02475247]
[1761059308966,0.4676,4041.3,4039.4,5.05744118]
[1761059309168,0.02564987,4041.2,4039.3,1.26544118]
[1761059309386,0.233,4039.4,4039.2,3.44]
[1761059309561,0.233,4039.4,4037.5,3.02225038]
[1761059309562,4.22932634,4039.3,4037.8,1.68109658]
[1761059309765,0.4676,4039.2,4036.1,3.791]
[1761059309965,0.02564987,4039.1,4036.3,0.3890477]
[1761059310286,0.53252987,4039.1,4036.3,0.3890477]
[1761059310484,2.47654267,4037.9,4036.3,0.3890477]
[1761059310685,0.4676,4039.0,4036.4,0.41800477]
[1761059310885,0.4676,4038.9,4036.4,0.49270477]
[1761059311085,0.4676,4038.9,4036.8,2.47716247]
[1761059311288,0.4676,4038.9,4036.4,0.49270477]
[1761059311289,0.02564987,4038.8,4036.4,0.49270477]
[1761059311675,2.47620057,4038.5,4036.4,0.49270477]
[1761059311859,2.47620057,4038.5,4036.5,0.25312048]
[1761059312187,2.47629007,4038.3,4036.5,0.25312048]
[1761059312355,0.4676,4038.4,4036.5,0.25312048]
[1761059312558,2.47586068,4039.0,4036.7,2.47726523]
[1761059312781,2.47586068,4039.0,4036.5,0.25312048]
[1761059312782,0.4676,4038.4,4036.5,0.25312048]
[1761059312959,0.4676,4038.4,4036.4,0.41800477]
[1761059312960,0.4676,4038.4,4036.8,2.47720663]
[1761059313156,0.4676,4038.4,4036.9,0.02477148]
[1761059313390,0.233,4039.4,4036.9,0.02477148]
[1761059313391,0.4676,4039.1,4036.9,0.02477148]
[1761059313593,0.233,4039.4,4036.4,0.41800477]
[1761059313594,2.1956,4039.3,4036.4,0.41800477]
[1761059313891,2.47601707,4038.8,4036.4,0.41800477]
[1761059314189,2.476238,4038.4,4036.5,0.22207048]
[1761059314353,2.4764735,4038.0,4036.5,0.22207048]
[1761059314561,0.4676,4038.6,4036.5,0.22207048]
[1761059314785,0.4676,4038.6,4036.4,0.41800477]
[1761059314786,0.49324987,4038.6,4036.4,0.41800477]
[1761059314967,0.49324987,4038.6,4035.1,0.55833068]
[1761059315182,0.50688,4038.4,4034.3,1.674]
[1761059315359,0.50688,4038.4,4035.6,2.47789419]
[1761059315688,0.50688,4038.4,4035.3,2.47808101]
[1761059315689,2.47690933,4037.3,4035.3,2.47812211]
[1761059315891,4.2566,4038.3,4035.1,6.26820197]
[1761059315892,2.47696765,4037.2,4035.1,6.26820197]
[1761059316093,4.2566,4038.3,4035.1,6.2682522]
[1761059316094,2.47721781,4036.8,4035.1,6.2682522]
[1761059316262,2.50292233,4036.7,4035.2,0.62682522]
[1761059316456,0.4676,4037.0,4035.1,3.79]
[1761059316661,0.02564987,4036.9,4033.4,0.002]
[1761059316862,2.4773415,4036.6,4034.0,0.02478929]
[1761059317092,2.1956,4036.8,4033.8,0.7949]
[1761059317301,2.47799587,4035.6,4033.8,0.7949]
[1761059317482,2.47781414,4035.9,4033.8,0.7949]
[1761059317483,2.4782627,4035.1,4033.8,0.677]
[1761059317688,0.02564987,4035.0,4033.8,0.677]
[1761059317887,0.4676,4035.8,4034.0,0.02478929]
[1761059318217,0.02564987,4035.7,4033.8,0.7949]
[1761059318417,0.233,4036.0,4033.8,0.7949]
[1761059318418,0.49324987,4035.9,4033.8,0.7949]
[1761059318574,2.4780158,4035.5,4033.8,0.677]
[1761059318772,0.4676,4035.9,4033.9,0.1199]
[1761059319271,0.233,4036.6,4034.0,0.33528929]
[1761059319495,0.233,4036.6,4035.3,2.4780858]
[1761059319817,0.233,4036.6,4035.5,2.47800324]
[1761059319974,0.233,4036.6,4035.3,2.4780717]
[1761059320306,1.248,4037.7,4035.3,2.4780717]
[1761059320307,0.02564987,4036.5,4035.3,0.49562525]
[1761059320489,0.4676,4036.6,4035.2,3.789]
[1761059321170,0.4676,4036.6,4035.5,2.47800258]
[1761059321372,0.233,4037.2,4035.2,3.789]
[1761059321572,0.7006,4037.2,4035.3,0.0247813]
[1761059321817,0.7006,4037.2,4035.2,4.0995]
[1761059322026,0.7006,4037.2,4036.5,2.47739351]
[1761059322322,0.49324987,4037.1,4035.3,0.40995]
[1761059322606,0.4676,4037.1,4035.3,0.40995]
[1761059322805,2.47715114,4036.9,4035.2,6.26717022]
[1761059322980,0.4676,4037.1,4031.4,1.2810682]
[1761059323191,0.233,4037.2,4028.4,0.002]
[1761059323192,0.2307,4031.2,4030.8,2.96216502]
[1761059323522,0.2307,4031.2,4028.7,2.4821892]
[1761059323523,1.728,4031.0,4028.7,3.858]
[1761059323676,0.65310054,4030.2,4028.7,3.858]
[1761059324007,0.52930889,4030.1,4028.7,3.858]
[1761059324204,0.52930889,4030.0,4028.7,3.858]
[1761059324506,0.52930889,4029.9,4029.4,0.01160966]
[1761059324707,0.65310054,4030.9,4029.4,0.01160966]
[1761059324906,0.52828274,4030.8,4029.8,2.48148235]
[1761059325112,0.52828274,4030.7,4029.9,4.09914824]
[1761059325275,0.87770535,4031.3,4029.9,4.09914824]
[1761059325276,0.65310054,4031.3,4030.0,0.0115998]
[1761059325603,0.52756822,4031.2,4030.0,0.4317]
[1761059325803,1.31655803,4031.9,4030.0,0.4317]
[1761059325804,0.65310054,4031.9,4030.0,0.4317]
[1761059326006,0.52757215,4031.8,4030.7,2.48095505]
[1761059326207,0.52757215,4031.7,4030.8,0.24809551]
[1761059326408,0.65310054,4032.4,4030.6,2.4810018]
[1761059326612,2.48009721,4032.1,4030.7,3.847]
[1761059326785,2.48009721,4032.1,4029.9,1.92214824]
[1761059326786,2.48036245,4031.7,4030.8,3.844]
[1761059326987,0.52709751,4031.6,4030.8,3.844]
[1761059327194,0.52709751,4031.5,4030.8,3.844]
[1761059327511,1.11610054,4032.1,4030.9,0.3844]
[1761059327719,3.66000696,4032.0,4030.9,0.3844]
[1761059327876,0.52674097,4031.9,4030.9,0.3844]
[1761059328082,0.65074097,4031.8,4031.2,0.124]
[1761059328400,0.52674097,4031.7,4031.2,0.124]
[1761059328592,0.52674097,4031.6,4031.2,0.124]
[1761059328797,0.124,4031.8,4031.2,0.124]
[1761059328998,0.55742218,4031.7,4031.2,0.124]
[1761059329232,0.124,4031.5,4030.9,0.124]
[1761059329524,0.124,4031.5,4031.0,1.458]
[1761059329685,0.124,4031.5,4030.9,0.124]
[1761059329686,0.587,4031.5,4030.9,0.124]
[1761059329889,0.587,4031.5,4031.0,3.834]
[1761059330089,0.124,4031.5,4031.0,0.3958]
[1761059330290,0.65310054,4032.9,4031.1,4.2657]
[1761059330514,2.25007606,4034.2,4030.8,0.1837]
[1761059330515,0.65310054,4033.8,4031.2,2.1597]
[1761059330723,1.17868596,4033.7,4032.1,2.48004296]
[1761059330900,0.52558542,4033.6,4032.2,0.67616095]
[1761059331099,0.65310054,4034.1,4032.2,0.6646]
[1761059331301,1.2135116,4034.0,4032.2,0.6646]
[1761059331602,0.52556666,4033.9,4032.3,3.842]
[1761059331805,0.52556666,4033.8,4032.4,4.45916]
[1761059332029,0.6879434,4034.2,4032.4,4.45916]
[1761059332030,0.52556666,4033.7,4032.4,4.45916]
[1761059332325,2.47848741,4034.8,4032.4,4.45916]
[1761059332326,0.52549354,4034.1,4032.5,0.4317]
[1761059332512,0.52538351,4034.4,4033.5,2.47918806]
[1761059332829,1.31655803,4035.3,4032.6,2.47978971]
[1761059332830,0.52538351,4034.7,4034.4,2.47868115]
[1761059333003,0.65695833,4035.7,4033.6,2.47915762]
[1761059333195,0.52526521,4035.5,4033.7,0.24791576]
[1761059333395,0.52526521,4035.5,4032.6,15.81925259]
[1761059333396,2.47832585,4035.0,4033.3,2.47932521]
[1761059333701,2.47831165,4035.1,4033.4,3.595]
[1761059333911,2.47844015,4034.8,4033.4,3.595]
[1761059334114,0.03098123,4034.7,4032.2,1.9609]
[1761059334323,2.92446814,4034.6,4032.5,5.504]
[1761059334630,0.4459,4034.6,4032.5,5.504]
[1761059334934,0.52547742,4035.2,4032.6,4.2585]
[1761059335137,1.10285833,4035.4,4032.6,4.2585]
[1761059335138,0.52547742,4035.3,4032.7,0.50688]
[1761059335432,1.728,4035.3,4033.4,2.4792823]
[1761059335630,3.44957427,4035.2,4033.6,2.47911472]
[1761059335832,2.47831807,4035.0,4033.4,2.47924711]
[1761059336016,2.47831807,4035.0,4033.5,6.30322999]
[1761059336215,0.4459,4034.9,4033.6,3.824]
[1761059336429,0.4459,4034.9,4033.5,2.47921913]
[1761059336626,0.4459,4034.9,4033.6,6.30216749]
[1761059336839,0.4459,4034.9,4033.6,6.30216816]
[1761059337041,0.001,4035.0,4033.7,3.83153978]
[1761059337203,0.001,4035.0,4033.9,2.47897299]
[1761059337400,0.001,4035.0,4034.1,2.47886765]
[1761059337714,0.001,4035.0,4033.7,3.82]
[1761059337925,0.001,4035.0,4034.3,2.47868958]
[1761059338224,0.001,4035.0,4034.4,3.816]
[1761059338732,0.001,4035.0,4034.6,2.47850412]
[1761059338900,0.001,4035.0,4031.9,0.05]
[1761059339101,0.001,4035.0,4032.8,0.4295]
[1761059339405,0.001,4035.0,4033.3,0.50688]
[1761059339605,0.001,4035.0,4032.8,0.4295]
[1761059339606,0.001,4035.0,4034.4,2.47865819]
[1761059339904,0.001,4035.0,4034.9,2.47837616]
[1761059340329,0.001,4035.0,4034.9,2.60157616]
[1761059340636,0.001,4035.0,4034.9,3.33092618]
[1761059340837,0.001,4035.0,4034.9,0.1232]
[1761059341044,0.001,4035.0,4034.9,6.40757616]
[1761059341759,0.001,4035.0,4034.9,6.40557616]
[1761059342413,0.001,4035.0,4034.9,2.60157616]
[1761059343245,0.001,4035.0,4034.9,6.82907616]
[1761059343449,0.001,4035.5,4035.4,2.47806908]
[1761059343632,0.001,4035.5,4035.4,8.444089]
[1761059343820,0.001,4035.5,4035.4,8.43256908]
[1761059344817,0.001,4035.5,4035.4,13.23783908]
[1761059345079,0.001,4035.5,4035.4,14.80943823]
[1761059345612,0.4459,4039.0,4035.4,14.80943823]
[1761059345613,0.53090853,4039.2,4035.6,2.607]
[1761059345817,0.003,4039.2,4037.4,1.728]
[1761059346025,0.003,4039.2,4037.5,1.674]
[1761059346253,0.4459,4039.1,4037.5,1.674]
[1761059346551,0.55807517,4039.0,4036.8,2.47720571]
[1761059346738,0.52712692,4038.9,4037.0,1.674]
[1761059346942,0.65695833,4038.7,4037.1,0.01148384]
[1761059347269,0.4459,4038.9,4037.0,1.674]
[1761059347419,0.4459,4038.9,4037.1,0.01148384]
[1761059347616,0.4459,4038.9,4038.2,2.47633168]
[1761059347817,0.4459,4038.9,4037.1,0.01148384]
[1761059347818,0.4459,4038.9,4038.3,6.26828307]
[1761059348130,0.4459,4038.9,4037.0,1.674]
[1761059348131,0.2159,4037.2,4037.0,1.674]
[1761059348444,0.4459,4038.9,4037.1,3.792]
[1761059348445,3.13319183,4038.4,4037.1,3.792]
[1761059348616,0.52646387,4038.3,4037.1,3.792]
[1761059348838,0.52646387,4038.2,4037.1,3.792]
[1761059349037,0.52646387,4038.1,4037.3,2.47690196]
[1761059349244,0.97236387,4038.0,4037.1,3.792]
[1761059349439,0.4459,4038.0,4035.8,0.1817]
[1761059349740,0.4459,4037.9,4037.4,2.47679284]
[1761059349949,0.2159,4038.3,4037.5,3.791]
[1761059349950,0.52620082,4038.2,4037.5,3.791]
[1761059350287,0.4459,4038.6,4038.1,2.47640073]
[1761059350589,0.4459,4038.6,4037.6,3.791]
[1761059350590,0.65695833,4039.7,4039.1,2.47579906]
[1761059350744,0.4489,4039.2,4039.1,3.791]
[1761059351074,0.003,4039.2,4039.1,3.791]
[1761059351693,0.4489,4039.2,4039.1,3.791]
[1761059351842,0.4489,4039.2,4037.8,0.1164]
[1761059352166,0.003,4039.2,4039.1,2.47579906]
[1761059352673,0.003,4039.2,4038.9,2.47589531]
[1761059352992,0.4489,4039.2,4038.9,2.47586779]
[1761059353144,0.003,4039.2,4039.1,2.47579906]
[1761059353482,0.4489,4039.2,4038.9,2.59912047]
[1761059353781,0.003,4039.2,4039.1,2.47579906]
[1761059354009,0.003,4039.2,4038.4,2.47617132]
[1761059354010,0.4489,4039.2,4035.8,0.69576486]
[1761059354169,0.4489,4039.2,4036.8,4.2195]
[1761059354466,0.4489,4039.2,4038.4,2.476203]
[1761059354816,0.5247357,4039.1,4036.2,4.15153836]
[1761059354999,3.00059606,4039.0,4036.5,2.47734317]
[1761059355183,3.00071626,4038.9,4037.2,2.47695337]
[1761059355385,0.65695833,4038.7,4037.3,3.422]
[1761059355582,0.5247357,4038.6,4037.4,2.47684153]
[1761059355775,0.5247357,4038.5,4037.3,3.422]
[1761059355994,0.5247357,4038.4,4037.3,3.422]
[1761059356196,0.41035746,4038.8,4037.3,3.422]
[1761059356197,0.4459,4038.6,4037.4,2.47682193]
[1761059356373,0.4459,4038.6,4037.3,3.422]
[1761059356374,0.55610955,4038.5,4037.8,2.47655093]
[1761059356579,0.4459,4038.6,4037.8,2.47655093]
[1761059356777,0.4459,4038.6,4036.6,0.1164]
[1761059356778,0.2159,4037.9,4035.5,1.673]
[1761059356970,0.2159,4037.9,4035.1,0.4295]
[1761059356971,0.55642016,4037.8,4035.9,2.47776208]
[1761059357172,0.4459,4038.6,4035.9,2.47776208]
[1761059357173,0.87770535,4038.4,4038.2,2.47630018]
[1761059357399,0.87770535,4038.4,4035.5,0.05]
[1761059357400,0.004,4039.2,4038.3,3.79]
[1761059357577,0.004,4039.2,4038.4,3.79]
[1761059357921,0.004,4039.2,4038.5,3.79]
[1761059358087,0.004,4039.2,4039.1,2.47579906]
[1761059358813,0.004,4039.2,4039.1,2.48726223]
[1761059358984,0.004,4039.2,4039.1,2.98358062]
[1761059359186,1e-08,4039.2,4039.1,3.42331745]
[1761059359593,1e-08,4039.2,4039.1,2.97211745]
[1761059360133,1e-08,4039.2,4039.1,2.47579906]
[1761059360269,1e-08,4039.2,4039.1,6.26479906]
[1761059360696,1e-08,4039.2,4039.1,2.47579906]
[1761059360909,1e-08,4039.2,4039.1,6.26479906]
[1761059361415,1e-08,4039.2,4039.1,6.71599906]
[1761059361714,1e-08,4039.2,4039.1,14.67804142]
[1761059361873,1e-08,4039.2,4039.1,15.18492142]
[1761059362073,1e-08,4039.2,4039.1,17.79192142]
[1761059362308,1e-08,4039.2,4039.1,18.04002142]
[1761059362617,1e-08,4039.2,4039.1,16.85792142]
[1761059363285,1e-08,4039.2,4039.1,14.21348542]
[1761059364123,1e-08,4039.2,4039.1,8.62658542]
[1761059364834,1e-08,4039.2,4039.1,14.08758542]
[1761059365134,1e-08,4039.2,4039.1,8.62658542]
[1761059365498,1e-08,4039.2,4039.1,14.08758542]
[1761059365704,1e-08,4039.2,4039.1,14.08658542]
[1761059365928,0.2159,4042.5,4039.2,1.728]
[1761059366139,0.55655859,4042.4,4042.0,0.1232]
[1761059366338,0.96663637,4042.3,4039.9,1.673]
[1761059366560,1.18280275,4042.2,4040.0,3.79843627]
[1761059366723,0.65716638,4042.0,4040.0,3.79843627]
[1761059366923,0.52563637,4041.9,4039.9,0.4536]
[1761059367257,0.68801665,4041.8,4040.9,2.47463759]
[1761059367436,0.68801665,4041.8,4039.9,0.4536]
[1761059367437,0.52563637,4041.7,4041.1,2.47452099]
[1761059367672,0.52563637,4041.6,4041.2,2.47446003]
[1761059367840,0.52563637,4041.5,4041.0,2.47458405]
[1761059368052,0.441,4042.7,4041.1,3.79843129]
[1761059368352,0.52563362,4042.4,4041.9,2.47407362]
[1761059368663,0.52563362,4042.4,4041.2,3.787]
[1761059368664,0.441,4042.7,4042.4,2.47377795]
[1761059368811,0.2289,4043.2,4042.4,3.79741264]
[1761059369008,0.2289,4043.2,4042.9,2.47345327]
[1761059369206,0.441,4043.1,4041.3,1.728]
[1761059369442,0.441,4043.1,4041.7,2.47420639]
[1761059369657,0.441,4043.1,4042.7,2.47359087]
[1761059369854,0.52592136,4043.0,4042.8,3.786]
[1761059370058,0.2289,4043.2,4042.8,3.786]
[1761059370254,0.441,4043.1,4042.6,2.47365436]
[1761059370562,0.52598252,4043.0,4042.9,3.786]
[1761059370760,0.2289,4043.2,4042.9,3.786]
[1761059371072,0.96694242,4043.1,4043.0,3.786]
[1761059371360,0.96694242,4043.1,4043.0,6.25941083]
[1761059371361,0.441,4043.1,4043.0,6.25941083]
[1761059371543,0.96709982,4043.1,4043.0,3.785]
[1761059372550,1.15241644,4043.1,4041.1,0.37984313]
[1761059372752,0.96709982,4043.0,4042.4,2.47372026]
[1761059373058,0.52609982,4042.9,4042.5,3.785]
[1761059373275,0.52609982,4042.8,4041.1,2.47457375]
[1761059373421,0.96709982,4042.7,4042.4,2.47377623]
[1761059373623,0.441,4042.7,4042.6,2.47365556]
[1761059373850,0.441,4042.7,4042.6,3.785]
[1761059374154,0.96773265,4042.7,4042.6,3.785]
[1761059375256,0.96773265,4042.7,4042.3,2.47382789]
[1761059375460,0.96773265,4042.7,4038.6,0.002]
[1761059375461,0.96773265,4042.6,4040.5,0.1837]
[1761059375618,0.65716638,4042.1,4039.6,2.47548127]
[1761059375818,0.65716638,4041.9,4040.8,2.47474242]
[1761059376058,0.52673265,4041.8,4041.4,2.47438033]
[1761059376247,0.52673265,4041.7,4041.5,2.47430862]
[1761059376449,0.78036638,4042.0,4041.6,6.25821326]
[1761059376643,0.9681207,4041.9,4041.6,6.25821326]
[1761059376848,0.441,4041.9,4041.6,2.47421326]
[1761059377046,0.1232,4042.0,4041.3,2.59764508]
[1761059377047,0.441,4041.8,4041.3,0.1232]
[1761059377559,0.1232,4042.0,4041.8,2.47410191]
[1761059377743,0.1232,4042.0,4041.4,3.341]
[1761059377744,0.1232,4042.0,4041.9,2.47408397]
[1761059378063,0.1232,4042.0,4041.5,0.01142205]
[1761059378064,0.441,4042.0,4041.6,0.1232]
[1761059378554,0.441,4042.0,4040.7,2.72287921]
[1761059378555,0.441,4042.0,4041.7,3.783]
[1761059378720,0.441,4042.0,4041.8,3.783]